Cogmind - Beta 15 @@@ ROGUE MODE // 2025.05.08 @ 13:39:59 Player: AnotherZach Result: Destroyed by B-75 Beast with Magnetic Acceleration Cannon Performance ------------- Evolutions (4) 2000 Regions Visited (10) 2000 Robots Destroyed (133) 665 Value Destroyed (3684) 3684 Prototype IDs (19) 380 Alien Tech Used (0) 0 Bonus (1511) 1511 TOTAL SCORE: 10240 Bonus ------- High Alert Combat Kills 44 Follower Combat Kills 712 Registered with UFD 300 Met Optimus in HQ 500 Met Data Miner 300 Friendly Fire -345 Cogmind --------- Core Integrity 0/850 Matter 300/300 Energy 59/100 System Corruption 13% Temperature Cool (12) Movement Flying (35) Location -5/Proximity Caves Parts ------- > --- POWER (2) -------- (None) > --- PROPULSION (5) --- Cooled Cesium-ion Thruster > --- UTILITY (5) ------ Machine Analyzer Advanced Terrain Scan Processor ECM Suite A0-MCA's Component Scanner > --- WEAPON (3) ------- (None) > --- INVENTORY (5) ---- Medium Storage Unit Advanced Terrain Scanner Trap Extractor (0/4) Remote Datajack Power Maul Peak State ------------ > --- POWER ------------ Antimatter Reactor Particle Reactor > --- PROPULSION ------- Improved Medium Treads Heavy Treads Improved Heavy Treads > --- UTILITY ---------- Advanced Heat Sink Large Storage Unit Machine Analyzer Advanced Targeting Computer Improved Propulsion Shielding > --- WEAPON ----------- Nova Cannon Improved Heavy Machine Gun Remote Datajack > --- INVENTORY -------- Antimatter Reactor Nuclear Pulse Thruster Nuclear Pulse Thruster Nuclear Pulse Thruster Cooled Cesium-ion Thruster Matter Compressor Advanced Signal Interpreter Seismic Detector ECM Suite A0-MCA's Component Scanner High-powered Tractor Beam Trap Extractor Improved Grenade Launcher Missile Launcher Power Maul [Rating: 85] Favorites ----------- Power Antimatter Reactor Engine Light Angular Momentum Engine Power Core Fusion Compressor Reactor Antimatter Reactor Propulsion Wheel Treads Light Treads Leg Armored Leg Wheel Wheel Hover Unit Gravmag System Flight Unit Nuclear Pulse Thruster Utility Large Storage Unit Device Advanced Heat Sink Storage Large Storage Unit Processor Machine Analyzer Hackware Hacking Suite Protection Improved Propulsion Shielding Weapon Light Cannon Energy Gun Gatling Laser Energy Cannon Nova Cannon Ballistic Gun Enhanced Autogun Ballistic Cannon Light Cannon Launcher Subdweller Shrapnel Launcher Special Weapon Remote Datajack Impact Weapon Power Maul Build | -11 -10 -10 -8 -6 -6 -6 -6 -6 -6 -5 ------- Run | Yrd Mat Sub Scr Fac Was Fac Low Low Dat Pro Slots Evolved 8 | . . . . 8 . . . . . . Power 1 | . . . . 1 . . . . . . Propulsion 3 | . . . . 3 . . . . . . Utility 3 | . . . . 3 . . . . . . Weapon 1 | . . . . 1 . . . . . . Parts Attached 141 | 8 16 3 7 67 7 5 4 10 . 14 Power 18 | 1 2 1 2 6 2 . . 3 . 1 Engine 9 | 1 2 1 . 4 . . . . . 1 Core 6 | . . . 2 2 . . . 2 . . Reactor 3 | . . . . . 2 . . 1 . . Propulsion 40 | 3 6 . 2 21 3 . . . . 5 Treads 12 | 2 3 . . 4 3 . . . . . Leg 6 | . . . . 6 . . . . . . Wheel 7 | 1 3 . 2 1 . . . . . . Hover 8 | . . . . 8 . . . . . . Flight 7 | . . . . 2 . . . . . 5 Utility 45 | 2 5 1 1 19 2 2 3 2 . 8 Device 18 | 2 2 . . 6 1 1 2 1 . 3 Storage 7 | . 2 . 1 1 . . . 1 . 2 Processor 10 | . . . . 6 . . 1 . . 3 Hackware 3 | . 1 . . 2 . . . . . . Protection 7 | . . 1 . 4 1 1 . . . . Artifact . | . . . . . . . . . . . Weapon 38 | 2 3 1 2 21 . 3 1 5 . . Energy Gun 5 | 1 . . . 4 . . . . . . Energy Cannon 1 | . . . . . . 1 . . . . Ballistic Gun 18 | 1 1 1 . 7 . 2 1 5 . . Ballistic Cannon 5 | . 2 . 2 1 . . . . . . Launcher 3 | . . . . 3 . . . . . . Special Weapon 4 | . . . . 4 . . . . . . Impact Weapon 2 | . . . . 2 . . . . . . Slashing Weapon . | . . . . . . . . . . . Piercing Weapon . | . . . . . . . . . . . Special Melee Weapon . | . . . . . . . . . . . Unidentified Prototypes 4 | . . . . 3 . 1 . . . . Corrupted Parts 1 | . . . . 1 . . . . . . System Corruption 7 | . . . . 7 . . . . . . Parts Lost 27 | . . 3 . 5 . 1 2 5 . 11 Power 4 | . . 1 . . . . 1 1 . 1 Propulsion 10 | . . . . 2 . . . 2 . 6 Utility 9 | . . 1 . 2 . 1 1 1 . 3 Weapon 4 | . . 1 . 1 . . . 1 . 1 Highest Loss Streak 6 | . . 2 . 2 . 1 1 4 . 6 To Critical Strikes 1 | . . . . . . . . . . 1 Average Backups 16 | 4 8 8 23 15 14 14 14 14 15 9 Power . | . . . 1 . . 1 1 . . . Propulsion 3 | 2 2 3 5 2 4 4 4 4 5 2 Utility 8 | . 4 3 11 8 7 6 6 6 6 5 Weapon 2 | . . 1 3 3 2 2 2 3 3 1 Tool/Special . | . . . . . . . . . . . Unused Backups 44 | 2 5 . 6 21 1 2 4 . . 3 Power 5 | 1 . . 2 2 . . . . . . Propulsion 13 | 1 3 . 2 2 . 1 4 . . . Utility 23 | . 2 . 2 15 1 . . . . 3 Weapon 3 | . . . . 2 . 1 . . . . Tool/Special . | . . . . . . . . . . . Average Slot Usage (%) 89 | . 99 99 88 95 89 85 85 73 49 78 Engine 4 | . 14 14 1 6 . . . . . 1 Core 5 | . . . 12 3 5 . . 2 6 3 Reactor 2 | . . . . . 4 13 12 8 6 2 Treads 8 | . 19 28 2 3 9 18 20 12 6 2 Leg 2 | . . . . 9 . . . . . . Wheel 9 | . 8 . 25 2 . . . . . . Hover 4 | . . . . 15 14 . . . . . Flight 1 | . . . . . . . . . . 18 Device 7 | . 7 9 2 7 12 6 16 16 13 12 Storage 9 | . 13 14 14 6 6 6 6 6 6 3 Processor 6 | . . . . 12 13 12 6 6 6 15 Hackware 1 | . 6 . . 2 . . . . . . Protection 1 | . . 4 . 2 . 6 1 . . . Energy Gun 1 | . 1 . . 5 . . . . . . Ballistic Gun 8 | . 6 10 8 4 5 8 19 18 3 10 Ballistic Cannon 9 | . 19 17 19 3 . . . . . . Impact Weapon 1 | . . . . 2 6 2 . . . 2 Peak Build Rating 85 | 11 11 8 24 69 81 85 81 83 59 78 Average Rating 41 | 6 8 7 17 56 70 82 78 67 48 62 On Entrance 41 | . 11 8 8 23 56 81 81 73 59 59 Naked Turns . | . . . . . . . . . . . Heaviest Build 217 | 9 22 23 217 217 67 76 67 66 59 60 Greatest Support 175 | 20 40 40 40 78 175 175 175 175 75 75 Greatest Overweight (x) 10 | . 1 . 10 7 2 . . . . 1 Average Overweight (x) 1 | . . . 6 . . . . . . . Largest Inventory Capacity 35 | 5 10 10 35 35 15 15 15 15 15 15 Average Capacity 18 | 5 8 10 29 15 15 15 15 15 15 10 Most Carried 35 | 5 10 10 35 34 15 15 15 15 15 15 Average Carried 16 | 4 8 8 24 14 14 14 14 14 15 9 Final Capacity 35 | 5 10 10 35 15 15 15 15 15 15 5 Final Carried 35 | 5 9 10 35 15 15 15 15 15 15 5 Class Distribution -------------------- 26% | Mutant 24% | Hauler-Mutant 14% | Scavenger-Gunner 11% | Scavenger-Mutant 11% | Scavenger-Tank 4% | Gunner Dominant Class ---------------- Mutant | -10/Materials Mutant | -10/Subcaves Hauler-Mutant | -8/Scraptown Scavenger-Gunner | -6/Factory Scavenger-Mutant | -6/Waste Scavenger-Tank | -6/Factory Scavenger-Gunner | -6/Lower Caves Gunner | -6/Lower Caves Mutant | -6/Data Miner Derelict-Scout | -5/Proximity Caves Resources | -11 -10 -10 -8 -6 -6 -6 -6 -6 -6 -5 ----------- Run | Yrd Mat Sub Scr Fac Was Fac Low Low Dat Pro Matter Collected 5791 | 195 711 207 267 2125 589 203 302 636 . 556 Remotely 958 | . 101 63 . 215 579 . . . . . Salvage Created 4847 | 149 722 164 . 1819 132 339 475 707 . 340 Parts 209 | 7 45 8 . 84 3 8 19 29 . 6 Haulers Intercepted 7 | . 2 . . 4 . 1 . . . . Recyclers Shooed 9 | 1 3 . . 5 . . . . . . Parts Field Recycled . | . . . . . . . . . . . Retrieved Matter . | . . . . . . . . . . . Parts Self-Destructed 56 | . . 7 . . . . 14 21 . 14 Prevented . | . . . . . . . . . . . Kills | -11 -10 -10 -8 -6 -6 -6 -6 -6 -6 -5 ------- Run | Yrd Mat Sub Scr Fac Was Fac Low Low Dat Pro Combat Hostiles Destroyed 77 | . 10 8 . 24 . 3 13 16 . 3 Melee 2 | . . . . 2 . . . . . . Guns 33 | . 6 3 . 5 . . 8 11 . . Cannons 20 | . 4 5 . 6 . 2 . . . 3 AOE 20 | . . . . 10 . . 5 5 . . Classes Destroyed 18 | 2 8 2 . 2 1 . 1 1 . 1 Worker 18 | . 3 . . 15 . . . . . . Builder 4 | . 1 . . 3 . . . . . . Tunneler 6 | 4 . . . 2 . . . . . . Hauler 7 | . 2 . . 4 . 1 . . . . Recycler 9 | 1 4 . . 3 . . . . . 1 Mechanic 4 | . 1 . . 2 . 1 . . . . Operator 4 | . 2 . . 2 . . . . . . Watcher 2 | . 1 . . 1 . . . . . . Swarmer 30 | . 5 3 . 6 . . 9 7 . . Grunt 27 | . 5 2 . 8 . 2 2 8 . . Brawler 1 | . . . . . . . . . . 1 Duelist 3 | . . . . . . . 1 . . 2 Sentry 7 | . . 1 . 3 . 1 1 1 . . Hunter 1 | . . . . 1 . . . . . . Programmer 6 | . . . . 6 . . . . . . Subdweller 2 | . . 2 . . . . . . . . Packrat 2 | . . . . . . . 2 . . . Samaritan 2 | . . . . . . . . 2 . . Martyr 2 | . . . . . 2 . . . . . Best Kill Streak 8 | 3 7 2 . 8 . 1 4 6 . 2 Combat Bots Only 6 | . 2 2 . 6 . 1 4 6 . 2 Max Kills in Single Turn 4 | 1 2 1 . 4 1 1 2 3 . 1 Gunslinging 1 | . . . . . . . 1 . . . Exploded 3 | . . . . 3 . . 2 3 . . Melee 1 | . . . . 1 . . . . . . Uniques/NPCs Destroyed . | . . . . . . . . . . . Combat | -11 -10 -10 -8 -6 -6 -6 -6 -6 -6 -5 -------- Run | Yrd Mat Sub Scr Fac Was Fac Low Low Dat Pro Hostile Shots Fired 620 | . 54 66 . 249 . 61 36 89 . 65 Missed 214 | . 19 23 . 93 . 23 13 20 . 23 Hits 406 | . 35 43 . 156 . 38 23 69 . 42 Melee 8 | . . . . . . . 1 . . 7 Projectile 398 | . 35 43 . 156 . 38 22 69 . 35 Critical Strikes 12 | . . 2 . 3 . . 1 3 . 3 Damage Taken 6659 | . 439 594 . 2203 . 510 433 1364 . 1116 Core 1028 | . 70 87 . 223 . 137 106 54 . 351 Absorbed by Shields . | . . . . . . . . . . . Reduced by Siege Mode 62 | . . . . . . . . 62 . . Redirected to Shielding 246 | . . . . 85 . 113 48 . . . Ignored by Resistances 14 | . . . . 14 . . . . . . Regen/Repaired (Parts) 500 | . . . . 68 135 297 . . . . Core Remaining (%) 68 | 100 . . 37 . . . . . . . Volleys Fired 314 | 22 58 32 . 108 12 16 15 38 . 13 Largest 3 | 2 2 2 . 3 1 3 3 3 . 3 Hottest 229 | 70 70 60 . 229 36 163 86 99 . 179 Shots Fired 676 | 44 116 65 . 218 14 37 44 106 . 32 Gun 447 | 44 62 20 . 124 7 21 40 102 . 27 Cannon 192 | . 54 45 . 73 . 15 . . . 5 Launcher 25 | . . . . 10 7 . 4 4 . . Special 12 | . . . . 11 . 1 . . . . Kinetic 532 | 22 108 65 . 140 7 21 40 102 . 27 Thermal 113 | 22 8 . . 63 . 15 . . . 5 Explosive 19 | . . . . 4 7 . 4 4 . . Electromagnetic . | . . . . . . . . . . . Robot Hit Streak 24 | 6 8 11 . 24 7 17 21 17 . 18 Robot Miss Streak 12 | 3 7 12 . 5 1 2 2 4 . 1 Penetration Max . | . . . . . . . . . . . Secondary Targets 7 | . 1 . . . . . 1 5 . . Max Gunslinging Chain 1 | . 1 . . . . . 1 1 . . Shots Hit Robots 477 | 27 65 42 . 172 6 30 29 78 . 28 Core Hits 196 | 6 28 13 . 75 1 6 23 36 . 8 Critical Kills 1 | . . . . 1 . . . . . . Critical Parts Destroyed 11 | 1 . . . 7 1 1 . . . 1 Critical Strikes 22 | 1 2 2 . 14 1 1 . . . 1 Burn 2 | . . . . 2 . . . . . . Destroy 2 | 1 . . . . . . . . . 1 Blast 8 | . 2 2 . 4 . . . . . . Smash 10 | . . . . 8 1 1 . . . . Melee Attacks 83 | . . . . 71 3 5 . 1 . 3 Impact 83 | . . . . 71 3 5 . 1 . 3 Slashing . | . . . . . . . . . . . Piercing . | . . . . . . . . . . . Sneak Attacks 16 | . . . . 12 2 1 . . . 1 Combat Hostiles . | . . . . . . . . . . . Follow-up Attacks . | . . . . . . . . . . . Damage Inflicted 13092 | 367 1042 651 . 5987 214 946 1072 2025 . 788 Guns 5504 | 367 449 104 . 1826 69 278 450 1465 . 496 Cannons 3160 | . 516 547 . 1380 . 560 . . . 157 Explosions 2211 | . 77 . . 952 . . 622 560 . . Melee 2217 | . . . . 1829 145 108 . . . 135 Ramming . | . . . . . . . . . . . Kinetic 7328 | 219 913 651 . 2787 69 278 450 1465 . 496 Thermal 2052 | 148 52 . . 1135 . 560 . . . 157 Explosive 1444 | . 77 . . 185 . . 622 560 . . Electromagnetic 51 | . . . . 51 . . . . . . Impact 2217 | . . . . 1829 145 108 . . . 135 Slashing . | . . . . . . . . . . . Piercing . | . . . . . . . . . . . Highest Corruption 13 | . 3 3 . 12 12 12 12 12 12 13 Average Corruption 9 | . 2 3 . 5 12 12 12 12 12 12 Corruption Purged 2 | . . . . 2 . . . . . . Corruption Blocked . | . . . . . . . . . . . Effects 166 | . 1 5 . 37 20 14 26 33 6 24 Message Errors 47 | . . 1 . 8 4 6 6 8 2 12 Matter Fused 48 | . 1 3 . 12 5 3 7 10 . 7 Heat Flow Errors 13 | . . . . 3 2 1 3 3 . 1 Energy Discharges 13 | . . . . 3 2 1 3 2 . 2 Parts Fused 1 | . . . . . 1 . . . . . Data Loss (minor) 20 | . . . . 6 2 3 2 6 1 . Data Loss (major) 6 | . . . . 2 . . . 2 2 . Misfires 7 | . . 1 . 1 3 . 2 . . . Alerts 4 | . . . . 1 . . 2 . 1 . Misdirections 1 | . . . . 1 . . . . . . Weapon Failures 6 | . . . . . 1 . 1 2 . 2 Overload Shots . | . . . . . . . . . . . Overflow Damage 1403 | . 19 14 . 1008 90 114 76 82 . . Projectiles 106 | . 8 14 . 58 . 26 . . . . Explosions 169 | . 11 . . . . . 76 82 . . Melee 1128 | . . . . 950 90 88 . . . . Knockbacks 30 | . 5 5 . 19 1 . . . . . Impact 5 | . . . . 4 1 . . . . . Kinetic 23 | . 5 5 . 13 . . . . . . Secondary 2 | . . . . 2 . . . . . . Self-Inflicted Damage 447 | . 113 . . 140 . . 89 105 . . Shots 11 | . 2 . . 4 . . 2 3 . . Rammed . | . . . . . . . . . . . Targets Rammed . | . . . . . . . . . . . Kicked . | . . . . . . . . . . . Crushed . | . . . . . . . . . . . Highest Temperature 423 | . 45 . . 204 100 390 157 423 . 235 Average Temperature 76 | . 16 . . 56 54 115 50 101 . 121 Received Heat Transfer 1449 | . 96 156 . 519 . 90 30 459 . 99 Effects 3 | . . . . . . . . . . 3 Interference 3 | . . . . . . . . . . 3 Siege Activations 2 | . . . . . . . . 2 . . Total Turns 67 | . . . . . . . . 67 . . Longest Duration 55 | . . . . . . . . 55 . . Martial Activations . | . . . . . . . . . . . Shielding Activations . | . . . . . . . . . . . Robots Disrupted . | . . . . . . . . . . . Combat Hostiles . | . . . . . . . . . . . Robots Corrupted 8 | . . . . 5 2 1 . . . . Combat Hostiles 2 | . . . . 1 . 1 . . . . Parts Fried 13 | . . . . 9 3 1 . . . . Impact Corruptions 35 | . . . . 31 2 2 . . . . Robots Melted . | . . . . . . . . . . . Combat Hostiles . | . . . . . . . . . . . Parts Melted 6 | . . . . 4 . 1 . 1 . . Heat Transferred 3643 | 444 148 . . 2385 . 518 . . . 148 Parts Sabotaged . | . . . . . . . . . . . Parts Stolen . | . . . . . . . . . . . Parts Stripped . | . . . . . . . . . . . Power Chain Reactions . | . . . . . . . . . . . Alert | -11 -10 -10 -8 -6 -6 -6 -6 -6 -6 -5 ------- Run | Yrd Mat Sub Scr Fac Was Fac Low Low Dat Pro Maximum Alert Level 3 | . . . . 2 . 3 . . . . Low Security (%) 67 | 100 100 . . 52 100 41 . . . . Level 1 25 | . . . . 42 . 17 . . . . Level 2 6 | . . . . 4 . 40 . . . . Level 3 . | . . . . . . . . . . . Level 4 . | . . . . . . . . . . . Level 5 . | . . . . . . . . . . . High Security . | . . . . . . . . . . . Max Security . | . . . . . . . . . . . Peak Influence 700 | 10 179 . . 438 181 700 . . . . Initial 152 | . . . . . 152 . . . . . Average 145 | 1 86 . . 158 82 317 . . . . Influence Increases 3750 | 25 417 140 . 1302 69 897 290 350 . 260 Destroy 0b10 Robot/C 1920 | . 200 120 . 480 . 380 260 320 . 160 Destroy 0b10 Robot/NC 285 | 25 70 . . 160 . 25 . . . 5 Destroy Leader 370 | . 46 20 . 160 . 84 30 30 . . Allied During Kill 269 | . . . . . . 234 . . . 35 Successful Hack 31 | . 5 . . 19 . 7 . . . . Disable Machine 135 | . 30 . . 90 . 15 . . . . Anti-Garrison Action 150 | . . . . . . 150 . . . . Destroy Structure 230 | . 36 . . 123 69 2 . . . . Partial Spotted 75 | . . . . 75 . . . . . . Lose Combat Pursuer 285 | . 30 . . 195 . . . . . 60 Influence Decreases 3744 | 25 372 185 . 866 505 260 551 456 270 254 Entered New Map 885 | . . 22 . . 284 . 237 72 270 . Time Decay 2199 | 25 372 143 . 516 201 170 294 334 . 144 Lost Part 220 | . . 20 . 50 . 10 20 50 . 70 Lost Ally 140 | . . . . . 20 80 . . . 40 Purge Threat 300 | . . . . 300 . . . . . . Squads Dispatched 28 | . 2 . . 19 . 4 . 1 . 2 Investigation 13 | . . . . 9 . 1 . 1 . 2 Extermination 6 | . . . . 6 . . . . . . Reinforcement 7 | . 2 . . 4 . 1 . . . . Assault 2 | . . . . . . 2 . . . . Garrison . | . . . . . . . . . . . Intercept . | . . . . . . . . . . . Searches Triggered . | . . . . . . . . . . . Construction Impeded 1 | . . . . 1 . . . . . . Haulers Reinforced 1 | . . . . 1 . . . . . . Active Scanning Responses . | . . . . . . . . . . . Cargo Convoy Interrupts . | . . . . . . . . . . . Stealth | -11 -10 -10 -8 -6 -6 -6 -6 -6 -6 -5 --------- Run | Yrd Mat Sub Scr Fac Was Fac Low Low Dat Pro Distress Signals 5 | . 3 . . 1 . . . . . 1 Communications Jammed . | . . . . . . . . . . . Distress Signals . | . . . . . . . . . . . Times Spotted 162 | . 20 9 . 59 5 9 13 17 . 30 Peak Tracking Total 13 | . 4 3 . 6 4 3 4 7 . 13 Tactical Retreats 14 | . 2 . . 10 . . . . . 2 Traps | -11 -10 -10 -8 -6 -6 -6 -6 -6 -6 -5 ------- Run | Yrd Mat Sub Scr Fac Was Fac Low Low Dat Pro Traps Triggered 9 | . 4 . . 4 . 1 . . . . Indirectly . | . . . . . . . . . . . Trap Hack Attempts . | . . . . . . . . . . . Triggered . | . . . . . . . . . . . Disarmed . | . . . . . . . . . . . Reprogrammed . | . . . . . . . . . . . Reused . | . . . . . . . . . . . Traps Extracted . | . . . . . . . . . . . Installed . | . . . . . . . . . . . Triggered . | . . . . . . . . . . . Machines | -11 -10 -10 -8 -6 -6 -6 -6 -6 -6 -5 ---------- Run | Yrd Mat Sub Scr Fac Was Fac Low Low Dat Pro Machines Disabled 11 | . 2 . . 6 . 2 . 1 . . Max in Single Turn 4 | . 2 . . 4 . 1 . 1 . . Garrison Access 2 | . . . . 1 . 1 . . . . Machines Repaired . | . . . . . . . . . . . Machines Dismantled . | . . . . . . . . . . . Machines Sabotaged . | . . . . . . . . . . . Overloaded Fab Kills . | . . . . . . . . . . . Hacking | -11 -10 -10 -8 -6 -6 -6 -6 -6 -6 -5 --------- Run | Yrd Mat Sub Scr Fac Was Fac Low Low Dat Pro Machines Accessed 37 | . 3 1 2 20 . 4 . 1 4 2 Terminals 13 | . 3 . . 7 . 2 . 1 . . Fabricators 4 | . . . . 3 . . . . . 1 Repair Stations 3 | . . . . 2 . 1 . . . . Recycling Units 8 | . . . . 6 . 1 . . . 1 Scanalyzers . | . . . . . . . . . . . Garrison Access 2 | . . . . 2 . . . . . . Total Hacks 112 | . 10 3 7 44 . 8 . 3 31 6 Successful 75 | . 3 3 7 24 . 3 . 3 31 1 Failed 37 | . 7 . . 20 . 5 . . . 5 Catastrophic 8 | . 1 . . 6 . 1 . . . . Database Lockouts . | . . . . . . . . . . . Manual 49 | . 10 . . 33 . 3 . . . 3 Terminals 32 | . 10 . . 17 . 2 . 3 . . Fabricators 13 | . . . . 10 . . . . . 3 Repair Stations 6 | . . . . 3 . 3 . . . . Recycling Units 17 | . . . . 11 . 3 . . . 3 Scanalyzers . | . . . . . . . . . . . Garrison Access 3 | . . . . 3 . . . . . . Terminal Hacks 49 | . 2 3 7 3 . . . 3 31 . Record 24 | . . 3 7 . . . . 3 11 . Part Schematic 14 | . . . . 1 . . . . 13 . Robot Schematic 5 | . 1 . . . . . . . 4 . Robot Analysis 1 | . 1 . . . . . . . . . Prototype ID Bank 3 | . . . . . . . . . 3 . Unreport Threat 2 | . . . . 2 . . . . . . Fabricator Hacks 1 | . . . . 1 . . . . . . Network Status 1 | . . . . 1 . . . . . . Repair Station Hacks 2 | . . . . . . 2 . . . . Scan Component 1 | . . . . . . 1 . . . . Repair 1 | . . . . . . 1 . . . . Recycling Unit Hacks 2 | . . . . 2 . . . . . . Retrieve Components 2 | . . . . 2 . . . . . . Scanalyzer . | . . . . . . . . . . . Garrison Access Hacks 1 | . . . . 1 . . . . . . Seal Access 1 | . . . . 1 . . . . . . Unauthorized Hacks 20 | . 1 . . 17 . 1 . . . 1 Terminals 5 | . 1 . . 4 . . . . . . Track 1 | . . . . 1 . . . . . . Botnet 2 | . . . . 2 . . . . . . Disrupt 2 | . 1 . . 1 . . . . . . Fabricators 5 | . . . . 5 . . . . . . Liberate 3 | . . . . 3 . . . . . . Haulers 2 | . . . . 2 . . . . . . Repair Stations 10 | . . . . 8 . 1 . . . 1 Patch 2 | . . . . 2 . . . . . . Recycling Units . | . . . . . . . . . . . Fedlink 8 | . . . . 6 . 1 . . . 1 Scanalyzers . | . . . . . . . . . . . Garrison Access . | . . . . . . . . . . . Data Cores Recovered 1 | . 1 . . . . . . . . . Used . | . . . . . . . . . . . Hacking Detections 22 | . 3 . . 12 . 4 . 1 . 2 Full Trace Events 3 | . . . . 1 . . . 1 . 1 Feedback Events . | . . . . . . . . . . . Feedback Blocked . | . . . . . . . . . . . Robot Schematics Acquired 5 | . 1 . . . . . . . 4 . Robots Built . | . . . . . . . . . . . Authchips . | . . . . . . . . . . . Time . | . . . . . . . . . . . Total Robot Build Rating . | . . . . . . . . . . . Part Schematics Acquired 14 | . . . . 1 . . . . 13 . Parts Built . | . . . . . . . . . . . Authchips . | . . . . . . . . . . . Time . | . . . . . . . . . . . Total Part Build Rating . | . . . . . . . . . . . Parts Repaired 1 | . . . . . . 1 . . . . Time 62 | . . . . . . 62 . . . . Parts Recycled . | . . . . . . . . . . . Recycled Matter . | . . . . . . . . . . . Retrieved Matter . | . . . . . . . . . . . Retrieved Components 3 | . . . . 3 . . . . . . Parts Scanalyzed . | . . . . . . . . . . . Part Schematics Acquired . | . . . . . . . . . . . Parts Damaged . | . . . . . . . . . . . Bothacking | -11 -10 -10 -8 -6 -6 -6 -6 -6 -6 -5 ------------ Run | Yrd Mat Sub Scr Fac Was Fac Low Low Dat Pro Used RIF Installer . | . . . . . . . . . . . Robots Hacked 6 | . . . . 6 . . . . . . Non-combat 6 | . . . . 6 . . . . . . Combat . | . . . . . . . . . . . Robot Hacks Applied 6 | . . . . 6 . . . . . . no_distress 1 | . . . . 1 . . . . . . find_chute 5 | . . . . 5 . . . . . . Relay Couplers Released 4 | . . . . 3 . 1 . . . . Machine Destruction 1 | . . . . . . 1 . . . . Programmers 3 | . . . . 3 . . . . . . Fabnet Peak Effective % . | . . . . . . . . . . . Robots Rewired 1 | . . . . . . . . . . 1 Allies Hacked . | . . . . . . . . . . . Hacks Repelled . | . . . . . . . . . . . Allies | -11 -10 -10 -8 -6 -6 -6 -6 -6 -6 -5 -------- Run | Yrd Mat Sub Scr Fac Was Fac Low Low Dat Pro Total Allies 20 | . . . . . 18 . . . . 2 Largest Group 18 | . . . . . 18 9 . . . 2 Highest-Rated Group 656 | . . . . . 656 366 . . . 119 Highest-Rated Ally 96 | . . . . . 50 46 . . . 96 Total Orders . | . . . . . . . . . . . Ally Attacks 232 | . . . . . 100 112 . . . 20 Total Damage 8381 | . . . . . 4811 2929 . . . 641 Kills 37 | . . . . . 11 21 . . . 5 Allies Corrupted 4 | . . . . . 3 1 . . . . Allies Melted . | . . . . . . . . . . . Intel | -11 -10 -10 -8 -6 -6 -6 -6 -6 -6 -5 ------- Run | Yrd Mat Sub Scr Fac Was Fac Low Low Dat Pro Active Infowar (turns) 6623 | 95 488 260 647 2620 489 472 657 320 . 575 Terrain 576 | 95 6 . . . . . . . . 475 Structural 1421 | . 484 260 647 30 . . . . . . Seismic 2001 | . . . . 924 82 18 657 320 . . Machine Analysis 3887 | . . . . 2590 489 454 . . . 354 ECM 59 | . . . . 47 . . . . . 12 Robot Analysis Total 1 | . 1 . . . . . . . . . Derelict Logs Recovered 5 | . . . 2 . . . 1 . . 2 Drone Launches . | . . . . . . . . . . . Drone Recoveries . | . . . . . . . . . . . Exploration | -11 -10 -10 -8 -6 -6 -6 -6 -6 -6 -5 ------------- Run | Yrd Mat Sub Scr Fac Was Fac Low Low Dat Pro Turns Passed 10620 | 209 938 440 3226 2636 489 473 657 756 157 639 Spaces Moved 7159 | 95 482 197 1708 2602 331 227 376 374 95 672 Core 14 | 14 . . . . . . . . . . Treads 2156 | 63 362 197 141 2 174 227 376 374 95 145 Legs 531 | . . . . 531 . . . . . . Wheels 2009 | 18 120 . 1567 304 . . . . . . Hover 1922 | . . . . 1765 157 . . . . . Flight 527 | . . . . . . . . . . 527 Fastest Speed 29 | 50 80 160 80 44 48 160 160 160 160 29 Average Speed 117 | 128 140 160 178 69 107 160 160 160 160 59 Slowest Speed 230 | 160 160 160 230 190 172 160 160 160 160 160 Overloaded Moves . | . . . . . . . . . . . Propulsion Burnouts . | . . . . . . . . . . . Robots Hopped 8 | . . . . . . . . . . 8 Potential Cave-ins 6 | . . . . . 6 . . . . . Cave-ins Triggered . | . . . . . . . . . . . Exploration Rate (%) 50 | 5 45 15 88 56 91 6 58 50 68 76 Regions Visited 10 Branch Regions 6 Pre-discovered Areas 4 | . . . 1 1 . . 1 . 1 . Known Exits Taken . | . . . . . . . . . . . Unknown Exits Taken 8 | 1 1 1 1 . . 1 1 1 1 . Scrap Searched 12 | . . . 4 . . . 1 3 . 4 Spaces Dug 51 | . . . . 47 1 . . 1 . 2 Terrain Destroyed 352 | . 47 . . 129 90 1 37 43 . 5 Melee 34 | . . . . 30 1 . . 1 . 2 Projectile 16 | . . . . 11 1 1 . . . 3 AOE 302 | . 47 . . 88 88 . 37 42 . . Terrain Rammed . | . . . . . . . . . . . Walls Destroyed . | . . . . . . . . . . . Machines Disabled . | . . . . . . . . . . . Actions | -11 -10 -10 -8 -6 -6 -6 -6 -6 -6 -5 --------- Run | Yrd Mat Sub Scr Fac Was Fac Low Low Dat Pro Total 8695 | 135 634 260 1890 3136 450 302 416 489 100 883 Wait 605 | . 39 22 122 120 80 35 1 43 . 143 Move 7136 | 94 481 196 1707 2602 330 226 375 373 94 658 Hop 6 | . . . . . . . . . . 6 Pick Up 139 | 8 16 3 38 48 3 5 6 5 . 7 Fast Attach 75 | 7 4 . 5 32 4 3 4 4 3 9 Attach 58 | 1 5 3 . 28 4 1 . 3 . 13 Detach 10 | . . . . 5 2 . . . . 3 Swap 85 | . 11 4 2 40 3 4 6 11 . 4 Drop 178 | 3 20 . 16 82 9 7 9 11 3 18 Fire 314 | 22 58 32 . 108 12 16 15 38 . 13 Melee 83 | . . . . 71 3 5 . 1 . 3 Ram . | . . . . . . . . . . . Kick . | . . . . . . . . . . . Crush . | . . . . . . . . . . . Escape Stasis . | . . . . . . . . . . . Rewire 6 | . . . . . . . . . . 6 Trap . | . . . . . . . . . . . Miscellaneous . | . . . . . . . . . . . Route ------- -11/Scrapyard -10/Materials (discovered 3 exits: [*Mat x2] / *Sub) -10/Subcaves (discovered 4 exits: *Mat x2 / Rec / *Scr) -8/Scraptown (discovered 2 exits: *Fac x2) -6/Factory (discovered 4 exits: *Fac x3 / [*Low]) -6/Waste -6/Factory (discovered 2 exits: *Fac / [*Low]) -6/Lower Caves -6/Lower Caves -6/Data Miner -5/Proximity Caves History --------- Turn | Location | Event 21 | -11/Scrapyard | Discovered new exit (range 15) 210 | -11/Scrapyard | Entered Materials 247 | -10/Materials | Discovered new exit (range 15) 302 | -10/Materials | Build established: Mutant 311 | -10/Materials | Discovered new exit (range 10) 1038 | -10/Materials | Discovered new exit (range 9) 1148 | -10/Materials | Entered Subcaves 1149 | -10/Subcaves | Approached by a straggling Scientist 1310 | -10/Subcaves | Core integrity fell below 50% 1362 | -10/Subcaves | Visited Clippyterm 1367 | -10/Subcaves | Identified exit to Materials 1367 | -10/Subcaves | Identified exit to Recycling 1570 | -10/Subcaves | Scientist uncovered a shortcut to Scraptown 1588 | -10/Subcaves | Entered Scraptown 1588 | -8/Scraptown | System corruption cleaned by C-Scrubber 1748 | -8/Scraptown | Learned location of Extension (-5) 1788 | -8/Scraptown | Visited Spacefarers 1809 | -8/Scraptown | Visited Supply Room 1843 | -8/Scraptown | Visited Comm Corps 1971 | -8/Scraptown | Discovered new exit (range 13) 2005 | -8/Scraptown | Scanned Subdweller tech in exchange for log data 2007 | -8/Scraptown | Learned Research security intel 2008 | -8/Scraptown | Learned Research trap positions 2025 | -8/Scraptown | Visited TADAMA 2043 | -8/Scraptown | Visited Cyclists 2058 | -8/Scraptown | Visited UFD Registry 2058 | -8/Scraptown | Registered with UFD as "Shadowframe" 2079 | -8/Scraptown | Entered Cyclist Reading Room 2182 | -8/Scraptown | Visited Derelict Rescue Squad 2193 | -8/Scraptown | Visited A0-MCA Data Center 2205 | -8/Scraptown | Visited Curators Association 2507 | -8/Scraptown | Given a B- rating by A0-MCA 2514 | -8/Scraptown | Found A0-MCA's Component Scanner 2542 | -8/Scraptown | Build established: Hauler-Mutant 2575 | -8/Scraptown | Found DRS Beacon 3532 | -8/Scraptown | Visited Junk Repository 3715 | -8/Scraptown | Visited Chapter 10 3764 | -8/Scraptown | Visited Junk Repository 3831 | -8/Scraptown | Visited Observation Area 3898 | -8/Scraptown | Visited Cartography Club 3965 | -8/Scraptown | Received an X-ray algorithm 3979 | -8/Scraptown | Visited DA-N13 Charitable Foundation 3999 | -8/Scraptown | Found DCF Scrap (26 items) 4371 | -8/Scraptown | Discovered new exit (range 5) 4685 | -8/Scraptown | Met Optimus 4685 | -8/Scraptown | Accepted into 0bPrime 4814 | -8/Scraptown | Entered Factory 4814 | -6/Factory | Evolved 8 slots: Power x1, Propulsion x3, Utility x3, Weapon x1 4979 | -6/Factory | Loaded intel: 8 recycling unit locations 5126 | -6/Factory | Build established: Scavenger-Tank 5397 | -6/Factory | Found Prototype Processor 5397 | -6/Factory | Identified Exp. Targeting Computer 5405 | -6/Factory | Found Exp. Targeting Computer 5603 | -6/Factory | Build established: Scavenger-Gunner 5800 | -6/Factory | Discovered new exit (range 16) 5904 | -6/Factory | Learned location of Protoforge (-3) 5928 | -6/Factory | Spotted B-75 Beast 6012 | -6/Factory | Discovered new exit (range 5) 6576 | -6/Factory | Discovered new exit (range 12) 6584 | -6/Factory | Identified exit to Factory 6999 | -6/Factory | System corruption reached 10% 7042 | -6/Factory | Discovered exit to Factory (range 3) 7450 | -6/Factory | Sucked down chute 7450 | -6/Factory | Entered Waste 7490 | -6/Waste | Spotted C-40 Crusher 7490 | -6/Waste | Spotted C-40 Crusher 7490 | -6/Waste | Spotted C-40 Crusher 7491 | -6/Waste | Spotted C-40 Crusher 7495 | -6/Waste | Spotted C-40 Crusher 7515 | -6/Waste | Warlord forces began an assault 7530 | -6/Waste | Allies destroyed C-40 Crusher 7536 | -6/Waste | Allies destroyed C-40 Crusher 7545 | -6/Waste | Allies destroyed C-40 Crusher 7548 | -6/Waste | Allies destroyed C-40 Crusher 7579 | -6/Waste | Spotted C-40 Crusher 7582 | -6/Waste | Allies destroyed C-40 Crusher 7610 | -6/Waste | Lost 7 allies 7867 | -6/Waste | Discovered new exit (range 12) 7919 | -6/Waste | Build established: Scavenger-Mutant 7939 | -6/Waste | Entered Factory 7939 | -6/Factory | Accompanied by 9 allies 8017 | -6/Factory | Repaired Imp. Heavy Treads 8235 | -6/Factory | Discovered exit to Factory (range 15) 8280 | -6/Factory | Discovered new exit (range 10) 8361 | -6/Factory | Loaded intel: 8 recycling unit locations 8412 | -6/Factory | Entered Lower Caves 8485 | -6/Lower Caves | Build established: Scavenger-Tank 8610 | -6/Lower Caves | Core integrity fell below 50% 8734 | -6/Lower Caves | Attracted the attention of an 0b10 checkpoint 8995 | -6/Lower Caves | Build established: Scavenger-Gunner 9053 | -6/Lower Caves | Discovered new exit (range 9) 9069 | -6/Lower Caves | Entered another Lower Caves area 9070 | -6/Lower Caves | Encountered a Warlord checkpoint 9379 | -6/Lower Caves | Attracted the attention of an 0b10 base 9440 | -6/Lower Caves | Lost 4 parts (1p2n1u) 9748 | -6/Lower Caves | Build established: Gunner 9795 | -6/Lower Caves | Discovered new exit (range 13) 9825 | -6/Lower Caves | Entered Data Miner 9827 | -6/Data Miner | Discovered new exit (range 6) 9857 | -6/Data Miner | Met Data Miner 9885 | -6/Data Miner | Learned location of Section 7 (-3) 9885 | -6/Data Miner | Acquired the access code to Warlord's prototype stash 9918 | -6/Data Miner | Received God Mode back door access code from Data Miner 9982 | -6/Data Miner | Entered Proximity Caves 10203 | -5/Proximity Caves | Learned 8 Factory zone layouts 10215 | -5/Proximity Caves | Attracted the attention of an 0b10 checkpoint 10242 | -5/Proximity Caves | Escorted by Enhanced Grunt 10280 | -5/Proximity Caves | Lost 6 parts (1p2n2u1w) 10284 | -5/Proximity Caves | Learned 4 Factory zone layouts 10488 | -5/Proximity Caves | Spotted B-75 Beast 10489 | -5/Proximity Caves | Entered a huge 0b10 base via the front door 10520 | -5/Proximity Caves | Loaded intel: 1 recycling unit location 10530 | -5/Proximity Caves | Core integrity fell below 20% 10555 | -5/Proximity Caves | Spotted B-75 Beast 10621 | -5/Proximity Caves | Destroyed by B-75 Beast with Magnetic Acceleration Cannon Last Messages --------------- 10548_ Dropped Lrg. Storage Unit. 10549_ Dropped Nova Cannon. 10566_ FT VVA&&W2D0LT7FH/JT74YKOVDUU8GGEM%IXQO 10590_ System corrupted: Energy discharge (-5). 10596_ Component scanned: Hover Unit [Drone]. 10596_ Drone sends a signal. 10598_ Slug penetrates Wall. 10598_ Nuclear Pulse Thruster destroyed. 10598_ Knocked back. 10604_ Slug penetrates Wall. 10604_ Penetrated by Slug. 10609_ System corrupted: Matter fused (-7). 10610_ Dropped Adv. Signal Interpreter. 10610_ Dropped Lrg. Matter Pod. 10611_ Extracted 22 matter. 10613_ Slug penetrates Wall. 10613_ Penetrated by Slug. 10614_ Nuclear Pulse Thruster destroyed. 10619_ Slug penetrates Door. 10620_ W-25 Informer sends out distress signal. Map ----- +----------------------------------------------------+ | # #?? ????? ???????????????????????????? | | + # #? ??????????""#???????????????????? | | # " "# # ? ?? ??????# T???????????????????? | | # "Y"# # ? ??????????# #???????????????????? | | # """# # ? ?????????# #???????????????????? | | ########## ######??#???#?# #???????????????????? | | """ # # ??????# #???????????????????? | | "F""# # ??????# #???????????????????? | | " ""# #???? ???# #???????????????????? | | # # ???????# #???????????????????? | | ##### """" ###++##### #???????????????????? | | """" #???????????????????? | | """" #???????????????????? | | ##### """" ####### ##/#???????????????????? | | ##### #?????# #? ??????????????????? | | ##?# #?????# #? ????????????????? | | #?### #?????# #? #???????????????? | | ##?## #?????# #? #???????????????? | | ########## ## ###?????#l #? #???????????????? | | #??#####?# ?###???????# #?? #???????????????? | | ?#####?### ?#?????????# #?? #???????????????? | | ? ???????????# #??####????????????????? | | ?? ?? ????????????# #??????????????????????? | | ###?##?###?????????????#% #??????????????????????? | | ##?#?#? ???????????????#l #??????????????????????? | | #####????????????????### @###????????????????????? | | ?###?#?? ????????????#w BB w#????????????????????? | | ?#?#?????????????????###BB###????????????????????? | | #?###??????????????????# #??????????????????????? | | ##?????????????????????# #??????????????????????? | | ###????????????????????# #??????????????????????? | | ##?????????????????????# #??????????????????????? | | ##?????????????????????# #??????????????????????? | | ???????????????????????# #??????????????????????? | | #??????????????????????#;;#??????????????????????? | | ###????????????????????#% #??????????????????????? | | ##?????????????????????# #######????????????????? | | ##?????###?????????????# ##!% ###??????????????? | | ##???### #?????????????# h# /]! ##?????????????? | | ##??## #?????????????# h #?????????????? | | ##??# #??????########h ##?????????????? | | ?#??# #####??# #??????????????? | | #??#"## ## ##?# ## ### ## #??????????????? | | #??##?## ### ## #?##### #??????????????? | | ???????## #?????# #??????????????? | | ????????## ###???## ###??????????????? | | ?#####???### ##???## #???????????????? | | ?# #?##"# ###??# #???????????????? | | ?# ## % ## ##?#! #???????????????? | | ## ### ###! #???????????????? | +----------------------------------------------------+ Best States ------------- Heat Dissipation 56 Energy Generation 39 Energy Capacity 565 Matter Stores 440 Matter Capacity 450 Sight Range 16 Terrain Scan Range 20 Terrain Scan Density 210 ECM Strength 1 Armor Coverage 225 Resistance: TH 10 Propulsion Shielding 66 Weapon Cycling 20 Evasion (%) 66 Targeting Accuracy 12 Melee Accuracy 6 Recoil Reduction 5 Salvage Targeting 2 Offensive Hacking 10 Item Schematics ----------------- Carbon-fiber Leg | -6/Factory | Hacked Combat Drone Bay | -6/Data Miner | Free Lgt. Regenerative Plating | -6/Data Miner | Free Cld. Nuclear Pulse Thruster | -6/Data Miner | Free Imp. Thermal Defense Suite | -6/Data Miner | Free Imp. KE Penetrator | -6/Data Miner | Free Shield Leg | -6/Data Miner | Free Adv. Cryofiber Web | -6/Data Miner | Free Micro-nuke Launcher | -6/Data Miner | Free Field Propulsion Drive | -6/Data Miner | Free Adv. Target Analyzer | -6/Data Miner | Free Imp. Force Field | -6/Data Miner | Free Linear Accelerator | -6/Data Miner | Free Nova Cannon | -6/Data Miner | Free Robot Schematics ------------------ M-13 Machinist | -10/Materials | Hacked Y-64 Sentinel | -6/Data Miner | Free G-50 Soldier | -6/Data Miner | Free M-22 Extractor | -6/Data Miner | Free R-10 Processor | -6/Data Miner | Free Fabricated ------------ Nothing Repaired ---------- Imp. Heavy Treads | 52% | -6/Factory Alien Tech Used ----------------- None Achievements -------------- None Challenges ------------ None Game ------ Seed LargeTerrabombWell Manual? 0 Play Time 01:56:16 Cumulative 733.3 hours Start 2025.05.08 @ 11:43:29 End 2025.05.08 @ 13:39:59 Sessions 1 Manual Loads 0 Difficulty Rogue Special Mode None Game No. 167 Rogue 29 Adventurer 138 Explorer 0 Win Type - Total 11 Types 7/0/1/2/0/0/0/0/1/0 Lore% 78 Gallery% 77 Achievement% 76 Wizard Run 0 Options --------- Layout 2 ASCII 0 Keyboard 0 Movement Mouse Keybinds 0 Fullscreen 1 Font 24/Smallcaps Map View 50x49 Zoom Use 0% Tactical HUD 1 Map Filters NONE Filters NONE Steam 1 RUN: d1a8b154-e402-4048-b643-85a228455c3b